[Event "94th FRA-ch Open A 2019"]
[Site "Chartres"]
[Date "2019.08.24"]
[Round "8.3"]
[White "Mahieu, Luc"]
[Black "Haie, Arnaud"]
[Result "0-1"]
[ECO "B47"]
[WhiteElo "2084"]
[BlackElo "2130"]
[Annotator "NA"]
[PlyCount "112"]
[EventDate "2019.08.17"]
[EventType "swiss"]
[EventCountry "FRA"]
[SourceTitle "playchess.com"]
[Source "ChessBase"]
[SourceQuality "1"]
[TimeControl "40/5400+30:1800+30"]

1. e4 {[%emt 0:00:00]} c5 {[%emt 0:00:00]} 2. Nf3 {[%emt 0:00:00]} e6 {[%emt 0:00:00]} 3. d4 {[%emt 0:00:00]} cxd4 {[%emt 0:00:00]} 4. Nxd4 {[%emt 0:00:02]} Nc6 {[%emt 0:00:00]} 5. Nc3 {[%emt 0:00:08]} Qc7 {[%emt 0:00:13]} 6. f4 {[%emt 0:00:07]} Nxd4 {[%emt 0:01:03]} 7. Qxd4 {[%emt 0:00:19]} b6 {[%emt 0:00:13]} 8. Be3 {[%emt 0:04:50]} Nf6 {[%emt 0:01:48]} 9. Be2 {[%emt 0:05:54]} Bb7 {[%emt 0:02:30]} 10. O-O-O {[%emt 0:06:30]} Rc8 {[%emt 0:01:17]} 11. Qd3 {[%emt 0:04:55]} Bb4 {[%emt 0:31:21]} 12. Nb5 {[%emt 0:08:26]} Qb8 {[%emt 0:04:04]} 13. Bf3 {[%emt 0:03:35]} d5 {[%emt 0:09:14]} 14. Nd4 {[%emt 0:10:44]} O-O {[%emt 0:06:22]} 15. e5 {[%emt 0:00:13]} Ne4 {[%emt 0:01:49]} 16. Kb1 {[%emt 0:07:59]} Nc5 {[%emt 0:04:17]} 17. Qe2 {[%emt 0:02:26]} Ba6 {[%emt 0:00:19]} 18. Qf2 {[%emt 0:00:40]} Na4 {[%emt 0:04:42]} 19. Qg3 {[%emt 0:03:37]} Qc7 {[%emt 0:10:37]} 20. f5 {[%emt 0:08:00]} Rfe8 {[%emt 0:10:27]} 21. f6 {[%emt 0:05:37]} g6 {[%emt 0:00:14]} 22. Qf4 {[%emt 0:04:26]} Qc5 {[%emt 0:02:21]} 23. Qh6 {[%emt 0:01:52]} Qf8 {[%emt 0:00:02]} 24. Qxf8+ {[%emt 0:00:17]} Bxf8 {[%emt 0:00:54]} 25. h4 {[%emt 0:00:28]} h6 {[%emt 0:01:42]} 26. g4 {[%emt 0:01:29]} Nc5 {[%emt 0:01:26]} 27. Rhg1 {[%emt 0:02:13]} Nd7 {[%emt 0:00:22]} 28. Bf4 {[%emt 0:00:46]} Rc4 {[%emt 0:00:28]} 29. c3 {[%emt 0:00:10]} b5 {[%emt 0:00:28]} 30. Be2 {[%emt 0:00:31]} Ra4 {[%emt 0:02:23]} 31. b3 {[%emt 0:00:26]} Ra3 {[%emt 0:00:26]} 32. Bc1 {[%emt 0:00:09]} b4 {[%emt 0:01:26]} 33. Bxa3 {[%emt 0:00:21]} Bxe2 {[%emt 0:00:04]} 34. Nxe2 {[%emt 0:00:05]} bxa3 {[%emt 0:00:04]} 35. Nd4 {[%emt 0:02:01]} Nxe5 {[%emt 0:00:13]} 36. g5 {[%emt 0:00:01]} Rc8 {[%emt 0:00:17]} 37. Rg3 {[%emt 0:03:11]} Bd6 {[%emt 0:00:24]} 38. gxh6 {[%emt 0:04:28]} Nd7 {[%emt 0:00:30]} 39. Rf3 {[%emt 0:12:34]} Be5 40. h5 {[%emt 0:00:00]} g5 {[%emt 0:05:01]} 41. Ne2 {[%emt 0:01:23]} Nxf6 {[%emt 0:03:35]} 42. Kc2 {[%emt 0:08:38]} Ne4 {[%emt 0:01:32]} 43. h7+ {[%emt 0:00:32]} Kg7 {[%emt 0:00:25]} 44. Nd4 {[%emt 0:02:02]} g4 {[%emt 0:02:39]} 45. Re3 {[%emt 0:01:50]} Kxh7 {[%emt 0:06:08]} 46. Rdd3 {[%emt 0:04:43]} Kh6 {[%emt 0:06:48]} 47. b4 {[%emt 0:03:48]} Bxd4 {[%emt 0:07:39]} 48. Rxd4 {[%emt 0:00:07]} f5 {[%emt 0:00:09]} 49. Kb3 {[%emt 0:02:21]} f4 {[%emt 0:00:54]} 50. Rexe4 {[%emt 0:00:11]} dxe4 {[%emt 0:06:10]} 51. Rxe4 Rf8 {[%emt 0:00:00]} 52. c4 {[%emt 0:00:56]} g3 {[%emt 0:00:00]} 53. Rxe6+ {[%emt 0:00:13]} Kxh5 {[%emt 0:00:00]} 54. c5 {[%emt 0:00:23]} g2 {[%emt 0:00:00]} 55. Re7 {[%emt 0:00:05]} g1=Q {[%emt 0:00:00]} 56. Rh7+ {[%emt 0:00:07]} Kg6 {[%emt 0:00:00]} 0-1

[Event "94th FRA-ch Open A 2019"]
[Site "Chartres"]
[Date "2019.08.24"]
[Round "8.4"]
[White "Meunier-Pion, Jean"]
[Black "Spitz, Patrick"]
[Result "0-1"]
[ECO "B40"]
[WhiteElo "2193"]
[BlackElo "2008"]
[Annotator "NA"]
[PlyCount "158"]
[EventDate "2019.08.17"]
[EventType "swiss"]
[EventCountry "FRA"]
[SourceTitle "playchess.com"]
[Source "ChessBase"]
[SourceQuality "1"]
[TimeControl "40/5400+30:1800+30"]

1. e4 {[%emt 0:00:00]} c5 {[%emt 0:00:00]} 2. Nf3 {[%emt 0:00:00]} e6 {[%emt 0:00:00]} 3. d3 {[%emt 0:00:36]} Nc6 {[%emt 0:01:12]} 4. g3 {[%emt 0:00:43]} a6 {[%emt 0:01:46]} 5. Bg2 {[%emt 0:00:25]} Nf6 {[%emt 0:01:50]} 6. O-O {[%emt 0:01:00]} Be7 {[%emt 0:03:32]} 7. Qe2 {[%emt 0:03:01]} d5 {[%emt 0:11:48]} 8. e5 {[%emt 0:00:07]} Nd7 {[%emt 0:00:26]} 9. c4 {[%emt 0:00:32]} d4 {[%emt 0:05:17]} 10. h4 {[%emt 0:25:05]} h6 {[%emt 0:01:17]} 11. h5 {[%emt 0:03:44]} Qc7 {[%emt 0:04:55]} 12. Re1 {[%emt 0:06:10]} b5 {[%emt 0:01:16]} 13. Na3 {[%emt 0:12:12]} Rb8 {[%emt 0:01:10]} 14. Bf4 {[%emt 0:00:32]} Na5 {[%emt 0:14:51]} 15. Nd2 {[%emt 0:12:38]} Bb7 {[%emt 0:07:35]} 16. Qg4 {[%emt 0:05:35]} Kf8 {[%emt 0:01:25]} 17. f3 {[%emt 0:05:14]} Bc6 {[%emt 0:04:12]} 18. cxb5 {[%emt 0:00:50]} axb5 {[%emt 0:00:34]} 19. Rac1 {[%emt 0:02:11]} Qb6 {[%emt 0:05:31]} 20. Qh3 {[%emt 0:05:25]} Bd5 {[%emt 0:01:59]} 21. Ne4 {[%emt 0:03:08]} c4 {[%emt 0:09:41]} 22. Nd6 {[%emt 0:00:05]} c3 {[%emt 0:04:15]} 23. bxc3 {[%emt 0:06:56]} Bxd6 {[%emt 0:00:20]} 24. exd6 {[%emt 0:00:16]} dxc3+ {[%emt 0:00:09]} 25. Kh2 {[%emt 0:02:38]} b4 {[%emt 0:04:38]} 26. Qh4 {[%emt 0:00:32]} Qd8 {[%emt 0:02:54]} 27. Qe7+ {[%emt 0:01:19]} Qxe7 {[%emt 0:02:52]} 28. dxe7+ {[%emt 0:00:05]} Kxe7 {[%emt 0:00:02]} 29. Bxb8 {[%emt 0:00:43]} Rxb8 {[%emt 0:00:00]} 30. Nb1 {[%emt 0:01:50]} Rc8 {[%emt 0:02:32]} 31. a3 {[%emt 0:00:31]} c2 {[%emt 0:02:17]} 32. axb4 {[%emt 0:00:05]} Nb3 {[%emt 0:00:33]} 33. Na3 {[%emt 0:00:17]} Nxc1 {[%emt 0:00:27]} 34. Rxc1 {[%emt 0:00:01]} Bb3 {[%emt 0:01:14]} 35. f4 {[%emt 0:00:45]} Nb6 {[%emt 0:01:35]} 36. Kg1 {[%emt 0:00:43]} Ba4 {[%emt 0:00:58]} 37. Kf2 {[%emt 0:00:59]} Rc3 {[%emt 0:00:35]} 38. Nc4 {[%emt 0:00:34]} Nxc4 {[%emt 0:00:09]} 39. dxc4 {[%emt 0:00:01]} Rxc4 {[%emt 0:00:18]} 40. b5 {[%emt 0:01:59]} Rb4 {[%emt 0:01:43]} 41. Ke3 {[%emt 0:02:18]} Rxb5 {[%emt 0:03:09]} 42. Be4 {[%emt 0:00:26]} Rb1 {[%emt 0:02:19]} 43. Rxb1 {[%emt 0:00:09]} cxb1=Q {[%emt 0:00:22]} 44. Bxb1 {[%emt 0:00:05]} Bd1 {[%emt 0:00:08]} 45. Bd3 {[%emt 0:04:11]} Bxh5 {[%emt 0:00:20]} 46. Kd4 {[%emt 0:01:35]} Kf6 {[%emt 0:00:22]} 47. Bc2 {[%emt 0:00:46]} g5 {[%emt 0:01:24]} 48. Ke3 {[%emt 0:00:36]} Bg6 {[%emt 0:00:28]} 49. Bd1 {[%emt 0:00:15]} Ke7 {[%emt 0:02:12]} 50. Be2 {[%emt 0:00:27]} Kd6 {[%emt 0:00:20]} 51. Bb5 {[%emt 0:02:00]} f6 {[%emt 0:01:29]} 52. Bc4 {[%emt 0:00:37]} Be8 {[%emt 0:00:27]} 53. Bb3 {[%emt 0:00:26]} Bc6 {[%emt 0:00:09]} 54. Bc4 {[%emt 0:00:29]} e5 {[%emt 0:01:49]} 55. Bf7 {[%emt 0:00:22]} exf4+ {[%emt 0:01:38]} 56. gxf4 {[%emt 0:00:06]} g4 {[%emt 0:01:02]} 57. Kf2 {[%emt 0:00:58]} Ke7 {[%emt 0:04:28]} 58. Bg6 {[%emt 0:04:20]} Ke6 {[%emt 0:00:45]} 59. Kg3 {[%emt 0:08:24]} f5 {[%emt 0:02:00]} 60. Kh4 {[%emt 0:00:17]} Kf6 {[%emt 0:08:11]} 61. Bh5 {[%emt 0:00:02]} Bd5 {[%emt 0:00:18]} 62. Be8 {[%emt 0:00:10]} Bf7 {[%emt 0:00:08]} 63. Bd7 {[%emt 0:00:56]} Bg6 {[%emt 0:00:10]} 64. Bb5 {[%emt 0:08:54]} Ke7 {[%emt 0:00:10]} 65. Bd3 {[%emt 0:00:05]} Kd6 {[%emt 0:00:26]} 66. Kg3 {[%emt 0:00:19]} Kd5 {[%emt 0:00:13]} 67. Bc2 {[%emt 0:00:51]} Kd4 {[%emt 0:00:11]} 68. Bb3 {[%emt 0:00:30]} Ke3 {[%emt 0:00:14]} 69. Bc2 {[%emt 0:00:29]} h5 {[%emt 0:00:18]} 70. Bd1 {[%emt 0:00:13]} Be8 {[%emt 0:03:04]} 71. Bb3 {[%emt 0:02:25]} h4+ {[%emt 0:00:56]} 72. Kxh4 {[%emt 0:00:02]} Kxf4 {[%emt 0:00:46]} 73. Be6 {[%emt 0:01:26]} Bc6 {[%emt 0:00:44]} 74. Bc4 {[%emt 0:00:57]} Be4 {[%emt 0:01:31]} 75. Be2 {[%emt 0:00:49]} g3 {[%emt 0:01:43]} 76. Kh3 {[%emt 0:00:01]} g2 {[%emt 0:00:07]} 77. Kh2 {[%emt 0:00:22]} Ke3 {[%emt 0:00:05]} 78. Bg4 {[%emt 0:00:53]} Kf2 {[%emt 0:00:26]} 79. Bxf5 {[%emt 0:00:17]} g1=Q+ {[%emt 0:00:09]} 0-1

[Event "94th FRA-ch Open A 2019"]
[Site "Chartres"]
[Date "2019.08.24"]
[Round "8.5"]
[White "Caloone, Thomas"]
[Black "Rivalin, Kenny"]
[Result "0-1"]
[ECO "B56"]
[WhiteElo "2111"]
[BlackElo "2184"]
[Annotator "NA"]
[PlyCount "186"]
[EventDate "2019.08.17"]
[EventType "swiss"]
[EventCountry "FRA"]
[SourceTitle "playchess.com"]
[Source "ChessBase"]
[SourceQuality "1"]
[TimeControl "40/5400+30:1800+30"]

1. e4 {[%emt 0:00:00]} c5 {[%emt 0:00:00]} 2. Nf3 {[%emt 0:00:00]} d6 {[%emt 0:00:00]} 3. d4 {[%emt 0:00:01]} cxd4 {[%emt 0:00:00]} 4. Nxd4 {[%emt 0:00:08]} Nf6 {[%emt 0:00:09]} 5. Nc3 {[%emt 0:00:05]} Nc6 {[%emt 0:00:13]} 6. g3 {[%emt 0:00:04]} Bg4 {[%emt 0:06:10]} 7. f3 {[%emt 0:25:00]} Bd7 {[%emt 0:02:54]} 8. Be3 {[%emt 0:08:19]} g6 {[%emt 0:08:49]} 9. Bg2 {[%emt 0:03:57]} Bg7 {[%emt 0:00:18]} 10. Nde2 {[%emt 0:00:22]} b5 {[%emt 0:03:51]} 11. O-O {[%emt 0:03:30]} b4 {[%emt 0:09:03]} 12. Nd5 {[%emt 0:00:47]} O-O {[%emt 0:01:17]} 13. a3 {[%emt 0:01:33]} a5 {[%emt 0:27:48]} 14. axb4 {[%emt 0:17:52]} axb4 {[%emt 0:02:29]} 15. Rxa8 {[%emt 0:00:08]} Qxa8 {[%emt 0:00:08]} 16. Bg5 {[%emt 0:04:30]} Qa7+ {[%emt 0:15:49]} 17. Kh1 {[%emt 0:01:07]} Nxd5 {[%emt 0:01:21]} 18. exd5 {[%emt 0:00:11]} Na5 {[%emt 0:01:12]} 19. b3 {[%emt 0:18:48]} Qc5 {[%emt 0:02:24]} 20. Qd2 {[%emt 0:04:46]} Bf5 {[%emt 0:02:19]} 21. Nc1 {[%emt 0:06:47]} Bxc2 {[%emt 0:03:20]} 22. Bxe7 {[%emt 0:00:32]} Rc8 {[%emt 0:00:08]} 23. Bh3 {[%emt 0:01:06]} Re8 {[%emt 0:03:50]} 24. Bxd6 {[%emt 0:00:58]} Qxd6 {[%emt 0:00:01]} 25. Qxc2 {[%emt 0:00:07]} Qxd5 {[%emt 0:00:05]} 26. Bg2 {[%emt 0:00:48]} Bc3 {[%emt 0:04:39]} 27. Rd1 {[%emt 0:01:05]} Qe6 {[%emt 0:00:02]} 28. f4 {[%emt 0:00:21]} Nc6 {[%emt 0:00:58]} 29. Bd5 {[%emt 0:00:25]} Nd4 {[%emt 0:02:06]} 30. Bxe6 {[%emt 0:00:18]} Nxc2 {[%emt 0:00:04]} 31. Bh3 {[%emt 0:00:20]} Ra8 {[%emt 0:00:57]} 32. Ne2 {[%emt 0:00:34]} Ne3 {[%emt 0:02:00]} 33. Nxc3 {[%emt 0:01:10]} bxc3 {[%emt 0:00:16]} 34. Rc1 {[%emt 0:00:04]} Ra3 {[%emt 0:00:59]} 35. Kg1 {[%emt 0:00:16]} Rxb3 {[%emt 0:00:13]} 36. Kf2 {[%emt 0:00:05]} c2 {[%emt 0:01:21]} 37. Ke2 {[%emt 0:00:07]} f5 {[%emt 0:00:07]} 38. Kd2 {[%emt 0:01:22]} Kf7 {[%emt 0:00:13]} 39. Ra1 {[%emt 0:01:03]} Rb1 {[%emt 0:00:38]} 40. Ra7+ {[%emt 0:00:05]} Ke6 {[%emt 0:00:13]} 41. Rc7 {[%emt 0:30:06]} Kd6 {[%emt 0:09:08]} 42. Rc3 {[%emt 0:00:00]} Rd1+ {[%emt 0:00:18]} 43. Kxe3 {[%emt 0:00:00]} c1=Q+ {[%emt 0:00:06]} 44. Rxc1 {[%emt 0:00:00]} Rxc1 {[%emt 0:00:04]} 45. Bg2 {[%emt 0:00:00]} Rc2 {[%emt 0:00:23]} 46. Kf3 {[%emt 0:00:00]} Kd5 {[%emt 0:08:17]} 47. h4 {[%emt 0:00:00]} Kd4 {[%emt 0:00:14]} 48. Bf1 {[%emt 0:00:00]} Rc3+ {[%emt 0:00:30]} 49. Kf2 {[%emt 0:00:00]} h6 {[%emt 0:00:38]} 50. Bb5 {[%emt 0:00:00]} Re3 {[%emt 0:08:04]} 51. Bd7 {[%emt 0:00:00]} Re7 {[%emt 0:00:58]} 52. Bb5 {[%emt 0:00:00]} Rc7 {[%emt 0:06:14]} 53. Bf1 {[%emt 0:00:00]} Rc1 {[%emt 0:01:04]} 54. Bb5 {[%emt 0:00:00]} Ke4 {[%emt 0:00:17]} 55. Ba4 {[%emt 0:00:00]} Rc4 {[%emt 0:00:23]} 56. Bd1 {[%emt 0:00:00]} Rc3 {[%emt 0:00:08]} 57. Ba4 {[%emt 0:00:00]} Rf3+ {[%emt 0:00:48]} 58. Kg2 {[%emt 0:00:00]} Ra3 {[%emt 0:00:04]} 59. Be8 {[%emt 0:00:31]} Ra6 {[%emt 0:00:15]} 60. h5 {[%emt 0:01:08]} g5 {[%emt 0:00:39]} 61. fxg5 {[%emt 0:00:46]} hxg5 {[%emt 0:00:05]} 62. Bg6 {[%emt 0:00:11]} Ke5 {[%emt 0:00:24]} 63. g4 {[%emt 0:01:06]} Ra2+ {[%emt 0:01:58]} 64. Kg3 {[%emt 0:00:32]} Ra3+ {[%emt 0:00:04]} 65. Kg2 {[%emt 0:00:04]} fxg4 {[%emt 0:00:29]} 66. h6 {[%emt 0:00:10]} Rh3 {[%emt 0:00:48]} 67. h7 {[%emt 0:00:03]} Kf4 {[%emt 0:00:17]} 68. Bb1 {[%emt 0:00:32]} Rh6 {[%emt 0:00:08]} 69. Bg6 {[%emt 0:00:19]} g3 {[%emt 0:00:07]} 70. Bc2 {[%emt 0:01:05]} Rh2+ {[%emt 0:00:19]} 71. Kg1 {[%emt 0:00:05]} Kf3 {[%emt 0:00:27]} 72. Bd1+ {[%emt 0:00:05]} Ke3 {[%emt 0:00:10]} 73. Bc2 {[%emt 0:00:05]} Kd4 {[%emt 0:02:07]} 74. Bf5 {[%emt 0:01:05]} Ke5 {[%emt 0:00:10]} 75. Bb1 {[%emt 0:00:42]} Kf6 {[%emt 0:00:03]} 76. Be4 {[%emt 0:00:37]} Kg7 {[%emt 0:00:12]} 77. Bf5 {[%emt 0:00:22]} Rb2 {[%emt 0:00:13]} 78. Be4 {[%emt 0:00:15]} Ra2 {[%emt 0:01:34]} 79. Bd3 {[%emt 0:00:58]} Rh2 {[%emt 0:01:01]} 80. Be4 {[%emt 0:00:20]} Kf6 {[%emt 0:00:12]} 81. Bd3 {[%emt 0:01:26]} Ke6 {[%emt 0:00:14]} 82. Be4 {[%emt 0:02:19]} Ke5 {[%emt 0:00:00]} 83. Bg6 {[%emt 0:00:11]} Kd4 {[%emt 0:00:37]} 84. Bf5 {[%emt 0:00:12]} Kc3 {[%emt 0:00:12]} 85. Bg6 {[%emt 0:00:35]} Kd2 {[%emt 0:00:06]} 86. Bf5 {[%emt 0:00:43]} Ke3 {[%emt 0:00:28]} 87. Bc2 {[%emt 0:00:05]} Ke2 {[%emt 0:00:08]} 88. Be4 {[%emt 0:00:06]} Ke3 {[%emt 0:03:14]} 89. Bc2 {[%emt 0:00:07]} g2 {[%emt 0:01:04]} 90. Be4 {[%emt 0:02:15]} Rh4 {[%emt 0:00:02]} 91. Bg6 {[%emt 0:05:30]} Kf3 {[%emt 0:00:36]} 92. h8=Q {[%emt 0:01:18]} Rxh8 {[%emt 0:00:07]} 93. Bh5+ {[%emt 0:00:03]} Kg3 {[%emt 0:00:14]} 0-1

[Event "94th FRA-ch Open A 2019"]
[Site "Chartres"]
[Date "2019.08.24"]
[Round "8.6"]
[White "Girardon, Jerome"]
[Black "Da Silva, Quentin"]
[Result "1-0"]
[ECO "E71"]
[WhiteElo "2164"]
[BlackElo "2161"]
[Annotator "NA"]
[PlyCount "65"]
[EventDate "2019.08.17"]
[EventType "swiss"]
[EventCountry "FRA"]
[SourceTitle "playchess.com"]
[Source "ChessBase"]
[SourceQuality "1"]
[TimeControl "40/5400+30:1800+30"]

1. d4 {[%emt 0:00:56]} Nf6 {[%emt 0:00:00]} 2. c4 {[%emt 0:00:36]} g6 {[%emt 0:00:00]} 3. Nc3 {[%emt 0:00:40]} Bg7 {[%emt 0:00:01]} 4. e4 {[%emt 0:01:42]} d6 {[%emt 0:00:08]} 5. h3 {[%emt 0:01:06]} O-O {[%emt 0:00:27]} 6. Be3 {[%emt 0:01:00]} e5 {[%emt 0:04:37]} 7. d5 {[%emt 0:00:43]} Na6 {[%emt 0:09:10]} 8. g4 {[%emt 0:02:42]} Nc5 {[%emt 0:02:19]} 9. Qc2 {[%emt 0:01:23]} a5 {[%emt 0:00:43]} 10. Nf3 {[%emt 0:01:59]} Re8 {[%emt 0:09:20]} 11. Nd2 {[%emt 0:06:22]} h6 {[%emt 0:15:57]} 12. O-O-O {[%emt 0:05:59]} Bd7 {[%emt 0:04:18]} 13. Kb1 {[%emt 0:26:29]} c6 {[%emt 0:04:35]} 14. f3 {[%emt 0:14:32]} a4 {[%emt 0:07:25]} 15. h4 {[%emt 0:00:28]} cxd5 {[%emt 0:04:34]} 16. cxd5 {[%emt 0:00:37]} Qc7 {[%emt 0:05:11]} 17. g5 {[%emt 0:02:55]} Nh5 {[%emt 0:02:40]} 18. Bb5 {[%emt 0:04:24]} Bf8 {[%emt 0:09:10]} 19. Nc4 {[%emt 0:01:05]} Red8 {[%emt 0:04:00]} 20. Rc1 {[%emt 0:02:01]} b6 {[%emt 0:02:30]} 21. gxh6 {[%emt 0:03:42]} Bxb5 {[%emt 0:01:10]} 22. Nxb5 {[%emt 0:00:10]} Qb8 {[%emt 0:01:01]} 23. Rhg1 {[%emt 0:01:12]} Kh7 {[%emt 0:01:42]} 24. Qd2 {[%emt 0:02:54]} Rd7 {[%emt 0:03:54]} 25. Rg5 {[%emt 0:00:43]} Nf4 {[%emt 0:01:11]} 26. h5 {[%emt 0:00:42]} Qd8 {[%emt 0:01:17]} 27. Rcg1 {[%emt 0:01:17]} Bxh6 {[%emt 0:05:01]} 28. Bxf4 {[%emt 0:00:39]} exf4 {[%emt 0:00:18]} 29. hxg6+ {[%emt 0:00:05]} fxg6 {[%emt 0:00:21]} 30. Rxg6 {[%emt 0:00:08]} Qf8 {[%emt 0:01:23]} 31. Nd4 {[%emt 0:01:35]} Re8 {[%emt 0:00:34]} 32. Nf5 {[%emt 0:00:16]} Bg7 {[%emt 0:00:30]} 33. Qh2+ {[%emt 0:15:28]} 1-0

[Event "94th FRA-ch Open A 2019"]
[Site "Chartres"]
[Date "2019.08.25"]
[Round "9.1"]
[White "Spitz, Patrick"]
[Black "Aumont, Alexandre"]
[Result "0-1"]
[ECO "B06"]
[WhiteElo "2008"]
[BlackElo "2190"]
[Annotator "NA"]
[PlyCount "76"]
[EventDate "2019.08.17"]
[EventType "swiss"]
[EventCountry "FRA"]
[SourceTitle "playchess.com"]
[Source "ChessBase"]
[SourceQuality "1"]
[TimeControl "40/5400+30:1800+30"]

1. e4 {[%emt 0:00:00]} g6 {[%emt 0:00:00]} 2. Nc3 {[%emt 0:00:11]} Bg7 {[%emt 0:00:00]} 3. d4 {[%emt 0:00:11]} d6 {[%emt 0:00:00]} 4. Be2 {[%emt 0:01:13]} a6 {[%emt 0:00:15]} 5. h4 {[%emt 0:01:45]} h5 {[%emt 0:04:27]} 6. Nf3 {[%emt 0:04:12]} b5 {[%emt 0:00:39]} 7. Be3 {[%emt 0:03:58]} Bb7 {[%emt 0:05:23]} 8. a3 {[%emt 0:04:07]} Nd7 {[%emt 0:01:13]} 9. Qd3 {[%emt 0:02:28]} c5 {[%emt 0:03:39]} 10. Rd1 {[%emt 0:10:20]} cxd4 {[%emt 0:08:45]} 11. Bxd4 {[%emt 0:02:09]} Ngf6 {[%emt 0:00:23]} 12. O-O {[%emt 0:03:47]} O-O {[%emt 0:01:36]} 13. Ng5 {[%emt 0:05:38]} Rc8 {[%emt 0:02:44]} 14. f4 {[%emt 0:03:35]} e5 {[%emt 0:22:01]} 15. Be3 {[%emt 0:07:21]} exf4 {[%emt 0:13:48]} 16. Bxf4 {[%emt 0:01:52]} Nc5 {[%emt 0:01:10]} 17. Qe3 {[%emt 0:00:56]} Re8 {[%emt 0:11:03]} 18. Bf3 {[%emt 0:01:24]} Bf8 {[%emt 0:11:32]} 19. e5 {[%emt 0:12:29]} Qb6 {[%emt 0:00:08]} 20. Bxb7 {[%emt 0:17:33]} Qxb7 {[%emt 0:00:19]} 21. Qg3 {[%emt 0:08:10]} dxe5 {[%emt 0:01:50]} 22. Bxe5 {[%emt 0:00:14]} Nfe4 {[%emt 0:05:15]} 23. Qf4 {[%emt 0:01:23]} Nxg5 {[%emt 0:02:34]} 24. Qxg5 {[%emt 0:01:07]} Ne4 {[%emt 0:01:24]} 25. Nxe4 {[%emt 0:01:14]} Qxe4 {[%emt 0:00:01]} 26. Rde1 {[%emt 0:00:09]} Qc6 {[%emt 0:01:27]} 27. c3 {[%emt 0:04:22]} Re6 {[%emt 0:00:27]} 28. Bd4 {[%emt 0:00:38]} Rce8 {[%emt 0:00:45]} 29. Rxe6 {[%emt 0:00:03]} Rxe6 {[%emt 0:00:31]} 30. g4 {[%emt 0:01:28]} hxg4 {[%emt 0:00:39]} 31. h5 {[%emt 0:00:11]} Qe8 {[%emt 0:01:00]} 32. Qxg4 {[%emt 0:01:11]} Bg7 {[%emt 0:00:13]} 33. Bxg7 {[%emt 0:00:36]} Kxg7 {[%emt 0:00:01]} 34. Qd4+ {[%emt 0:00:10]} Kh7 {[%emt 0:00:19]} 35. Rf2 {[%emt 0:00:47]} gxh5 {[%emt 0:00:52]} 36. Qd5 {[%emt 0:00:18]} Re1+ {[%emt 0:00:49]} 37. Rf1 {[%emt 0:00:41]} Qe3+ {[%emt 0:00:29]} 38. Kg2 {[%emt 0:00:13]} Re2+ {[%emt 0:00:09]} 0-1